bitfinex-derivatives/quotes_ETHF0:USTF0_20240910
["timestamp","ask_amount","ask_price","bid_price","bid_amount"]
[1725964905647,1.66727489,2349.6,2349.5,1.1971]
[1725964906146,2.09283489,2349.7,2349.5,1.1971]
[1725964906654,1.66727489,2349.7,2349.5,0.7715]
[1725964906862,2.09284489,2349.7,2349.5,1.19708]
[1725964907161,0.42557,2349.7,2349.5,1.19708]
[1725964908050,2.09284489,2349.7,2349.5,1.19708]
[1725964908648,2.09284489,2349.7,2349.6,0.42558]
[1725964912458,2.09284489,2349.7,2349.6,4.68158]
[1725964913160,0.42557,2349.7,2349.6,4.68158]
[1725964915253,2.09283489,2349.8,2349.7,0.42556]
[1725964915452,0.42557,2349.7,2349.6,0.42557]
[1725964915946,0.42557,2349.7,2349.6,4.68157]
[1725964916854,0.42557,2349.7,2349.6,5.06797]
[1725964917653,3.72384,2349.9,2349.8,0.42554]
[1725964917654,1.66785257,2349.9,2349.8,0.42554]
[1725964917852,1.66785257,2349.9,2349.7,4.256]
[1725964918049,1.66785257,2350.0,2349.7,4.256]
[1725964918253,2.09338257,2349.9,2349.8,0.42554]
[1725964918560,2.09338257,2349.9,2349.8,4.68074]
[1725964918761,0.42553,2349.9,2349.8,4.68074]
[1725964918955,0.79823,2349.9,2349.8,4.68074]
[1725964919351,3.45823,2349.9,2349.6,0.3864]
[1725964919553,2.09364459,2349.8,2349.6,0.3864]
[1725964919754,2.49655459,2349.7,2349.6,0.42556]
[1725964920050,2.45329459,2349.7,2349.6,0.42556]
[1725964921260,2.87885459,2349.7,2349.6,0.42556]
[1725964922270,0.42559,2349.6,2349.4,0.3982]
[1725964922456,6.17721459,2349.7,2349.4,0.3982]
[1725964922665,1.66809459,2349.6,2349.4,0.82381]
[1725964922850,2.09368459,2349.6,2349.4,0.82381]
[1725964923051,4.50912,2349.7,2349.5,4.92119623]
[1725964923052,0.7852,2349.7,2349.5,4.92119623]
[1725964923248,1.66809459,2349.8,2349.7,0.42556]
[1725964923565,1.66809459,2349.8,2349.6,0.42556]
[1725964924049,2.89809459,2349.8,2349.6,0.42556]
[1725964926162,2.89809459,2349.8,2349.7,0.42556]
[1725964926163,1.23,2349.8,2349.7,0.42556]
[1725964926360,1.23,2349.8,2349.7,1.09068124]
[1725964926757,2.45842459,2349.9,2349.7,0.42556]
[1725964926758,2.03289459,2349.9,2349.7,0.42556]
[1725964926957,2.03289459,2349.9,2349.7,0.81376]
[1725964927765,1.66809459,2349.8,2349.7,0.81376]
[1725964929567,1.66809459,2349.8,2349.7,0.3882]
[1725964929775,2.45842459,2349.9,2349.7,1.05337756]
[1725964929967,2.45842459,2349.9,2349.7,0.3882]
[1725964930966,1.66809459,2349.8,2349.7,0.3882]
[1725964931170,2.89809459,2349.8,2349.6,0.80477]
[1725964931364,3.32363459,2349.8,2349.6,0.80477]
[1725964931671,1.66809459,2349.8,2349.7,0.42556]
[1725964931869,1.66809459,2349.8,2349.7,0.79046]
[1725964932874,3.26289459,2349.9,2349.8,0.42554]
[1725964933174,1.66809459,2350.1,2350.0,0.42551]
[1725964933375,1.66809459,2350.3,2350.0,0.66509331]
[1725964933559,1.66809459,2350.4,2350.3,0.42545]
[1725964933761,2.89809459,2350.4,2350.2,0.42546]
[1725964936275,1.66809459,2350.4,2350.2,0.42546]
[1725964936972,2.09352459,2350.4,2350.2,0.42546]
[1725964940062,0.42543,2350.4,2350.2,0.42546]
[1725964940265,2.09352459,2350.4,2350.2,0.42546]
[1725964940479,0.42543,2350.4,2350.2,0.42546]
[1725964940676,5.06819459,2350.5,2350.2,0.42546]
[1725964941075,1.66809459,2350.4,2350.2,0.42546]
[1725964941374,5.49361459,2350.5,2350.2,0.42546]
[1725964941882,5.49361459,2350.5,2350.1,1.18077]
[1725964942789,1.66809459,2350.4,2350.1,1.18077]
[1725964943379,1.66809459,2350.4,2350.1,0.7553]
[1725964943681,1.66809459,2350.5,2350.1,0.7553]
[1725964943876,2.64850412,2350.7,2350.5,0.42542]
[1725964943877,1.66809459,2350.6,2350.5,0.42542]
[1725964944073,1.66809459,2350.7,2350.5,0.42542]
[1725964944267,2.40969459,2350.8,2350.6,0.3773]
[1725964944474,2.83505459,2350.8,2350.6,0.3773]
[1725964945074,1.16696,2350.8,2350.6,0.3773]
[1725964945372,2.83505459,2350.8,2350.6,0.3773]
[1725964946373,2.03659459,2350.8,2350.6,0.8027]
[1725964946577,2.03659459,2350.8,2350.6,0.3773]
[1725964946768,2.46195459,2350.8,2350.6,0.3773]
[1725964947474,1.66809459,2350.9,2350.7,0.42538]
[1725964947883,1.19803,2351.0,2350.7,0.80218]
[1725964947884,2.86612459,2351.0,2350.7,0.80218]
[1725964948273,1.66809459,2350.9,2350.7,0.80218]
[1725964948475,2.86612459,2351.0,2350.7,0.3768]
[1725964948676,1.66809459,2350.9,2350.7,0.3768]
[1725964949173,2.44079459,2351.0,2350.7,0.3768]
[1725964949374,2.44079459,2351.0,2350.7,0.80217]
[1725964949575,2.86612459,2351.0,2350.7,0.80217]
[1725964950787,1.66809459,2350.9,2350.6,0.3773]
[1725964950985,1.66809459,2350.9,2350.7,0.42537]
[1725964951281,3.08537,2350.8,2350.5,0.42541]
[1725964951483,3.47947,2350.8,2350.5,0.42541]
[1725964951688,0.3701,2350.7,2350.5,0.42541]
[1725964951983,0.3883,2350.6,2350.5,0.42541]
[1725964953978,0.3883,2350.6,2350.2,0.3661]
[1725964954389,0.3883,2350.6,2350.5,0.42542]
[1725964954578,0.3701,2350.7,2350.6,0.4254]
[1725964954980,0.3805,2350.9,2350.7,0.42538]
[1725964955181,0.7803,2350.9,2350.7,0.42538]
[1725964956285,2.4447514,2350.9,2350.7,0.42538]
[1725964956489,2.4447514,2350.9,2350.4,1.45968]
[1725964956683,2.4447514,2350.9,2350.7,0.42537]
[1725964956879,0.42536,2350.8,2350.6,0.4254]
[1725964957085,5.1047514,2350.9,2350.6,0.4254]
[1725964957283,5.1047514,2350.9,2350.7,0.42538]
[1725964958782,5.1047514,2350.9,2350.6,0.3805]
[1725964958987,5.1047514,2350.9,2350.7,0.42537]
[1725964962292,1.23,2350.8,2350.7,0.42537]
[1725964962596,1.23,2350.8,2350.5,0.3718]
[1725964962898,0.7803,2350.9,2350.7,0.42537]
[1725964963091,0.7803,2350.9,2350.8,0.79346]
[1725964963298,1.6644514,2351.2,2351.1,0.42531]
[1725964963493,1.6644514,2351.3,2351.2,0.42529]
[1725964963694,4.0333514,2351.4,2351.2,0.42529]
[1725964964187,5.4633514,2351.4,2351.2,0.42529]
[1725964965194,5.8886114,2351.4,2351.1,0.4253]
[1725964965396,1.6644514,2351.3,2350.9,0.766]
[1725964965599,1.6644514,2351.3,2351.2,0.42529]
[1725964966200,2.0897314,2351.3,2351.0,0.42531]
[1725964966394,2.66,2351.1,2350.9,0.42533]
[1725964966701,0.759,2351.0,2350.9,0.42533]
[1725964966899,1.1377,2351.0,2350.9,0.42533]
[1725964967889,1.1377,2351.0,2350.9,0.42534]
[1725964969900,2.8021514,2351.0,2350.6,0.7542]
[1725964970092,0.42534,2350.9,2350.6,0.42539]
[1725964970398,0.42534,2350.9,2350.7,0.42538]
[1725964970894,2.8021514,2351.0,2350.7,0.42538]
[1725964971090,3.2274814,2351.0,2350.8,0.42535]
[1725964971590,0.42534,2350.9,2350.7,0.42537]
[1725964973394,2.0898114,2350.9,2350.7,0.42538]
[1725964974698,0.42537,2350.8,2350.6,0.42539]
[1725964975094,0.42537,2350.8,2350.4,2.22388]
[1725964975095,2.0898114,2350.9,2350.7,0.42538]
[1725964975298,2.0898114,2350.9,2350.4,1.1603]
[1725964975299,2.0898114,2350.8,2350.4,1.1603]
[1725964975606,2.0898114,2350.8,2350.6,0.42539]
[1725964975989,1.6644514,2350.8,2350.7,0.42538]
[1725964976893,1.66714178,2350.9,2350.8,0.42536]
[1725964980401,3.02329854,2351.0,2350.9,0.42534]
[1725964981696,0.80403,2351.0,2350.9,0.42534]
[1725964982312,0.80403,2351.0,2350.7,0.42538]
[1725964982511,1.66838129,2350.8,2350.7,0.42538]
[1725964984306,2.09374129,2350.8,2350.6,0.42538]
[1725964984508,2.86665894,2350.8,2350.7,1.09030516]
[1725964984702,2.44129894,2350.8,2350.7,1.09030516]
[1725964984908,2.86665894,2350.8,2350.7,0.66492516]
[1725964985115,1.19736,2350.8,2350.6,0.42538]
[1725964985299,1.66931653,2350.7,2350.6,0.42538]
[1725964985607,1.66931653,2350.7,2350.6,1.09031703]
[1725964986706,2.61550839,2350.8,2350.7,0.42538]
[1725964986907,2.61550839,2350.8,2350.7,1.09031703]
[1725964987108,2.22450839,2350.8,2350.7,1.09032583]
[1725964988403,4.42943568,2350.9,2350.7,1.09032583]
[1725964988611,4.42943568,2350.9,2350.7,0.42538]
[1725964988811,2.77408568,2350.8,2350.7,0.42538]
[1725964989106,3.19944568,2350.8,2350.7,1.09033599]
[1725964989306,2.6529976,2350.8,2350.7,1.09033599]
[1725964989612,0.42536,2350.8,2350.7,1.09033599]
[1725964990807,0.42536,2350.8,2350.7,1.09028844]
[1725964991504,4.00408568,2350.9,2350.8,0.42536]
[1725964991505,4.42943568,2350.9,2350.8,0.42536]
[1725964991706,4.42943568,2350.9,2350.8,1.09026844]
[1725964992100,4.42943568,2350.9,2350.8,0.66490844]
[1725964992811,4.00408568,2350.9,2350.8,1.09026844]
[1725964996907,4.00408568,2350.9,2350.8,0.42536]
[1725964997702,4.42942568,2350.9,2350.8,0.42536]
[1725964997909,1.65534,2350.9,2350.8,0.42536]
[1725964998504,4.44149733,2350.9,2350.8,1.09031447]
[1725964998710,4.01615733,2350.9,2350.8,1.09027062]
[1725964998910,4.44149733,2350.9,2350.8,0.42536]
[1725964999113,4.44149733,2350.9,2350.8,1.09029691]
[1725965000017,4.44149733,2350.9,2350.8,0.66493691]
[1725965000714,4.44169282,2350.9,2350.8,0.66493691]
[1725965000920,1.23,2350.9,2350.8,1.09029691]
[1725965001221,4.0163426,2350.9,2350.8,1.09027585]
[1725965001520,1.65532,2351.1,2350.9,0.42534]
[1725965001708,2.05502,2351.1,2350.9,1.16014]
[1725965002110,0.42532,2351.0,2350.9,1.16014]
[1725965002313,0.42532,2351.0,2350.9,1.82503949]
[1725965002517,0.42532,2351.0,2350.9,1.16014]
[1725965002914,1.6297,2351.1,2350.9,1.16014]
[1725965003114,2.05502,2351.1,2350.9,0.7348]
[1725965003317,0.42532,2351.0,2350.9,1.16013]
[1725965003629,1.6297,2351.1,2350.9,1.16013]
[1725965003630,2.05502,2351.1,2351.0,0.42532]
[1725965003918,3.32890281,2351.3,2351.1,0.42531]
[1725965004119,2.78609448,2351.2,2351.1,0.42531]
[1725965004326,2.78609448,2351.3,2351.2,0.42529]
[1725965004829,2.78609448,2351.3,2351.2,1.48852]
[1725965005021,2.22860208,2351.4,2351.3,1.48845]
[1725965005215,2.22860208,2351.4,2351.3,15.89916287]
[1725965005216,0.78348293,2351.4,2351.3,15.89916287]
[1725965005517,1.1144952,2351.6,2351.4,1.06314]
[1725965005716,1.1144952,2351.7,2351.6,0.42522]
[1725965006123,1.1144952,2351.7,2351.6,4.67722]
[1725965006612,1.1144952,2351.8,2351.7,0.4252]
[1725965006813,1.1144952,2351.8,2351.7,0.7984]
[1725965007012,1.1144952,2351.8,2351.7,5.0504]
[1725965008423,1.1144952,2351.8,2351.7,0.7984]
[1725965008815,1.1144952,2351.8,2351.7,5.0504]
[1725965009128,1.1144952,2351.8,2351.7,0.7984]
[1725965010019,1.1144952,2351.9,2351.7,5.0504]
[1725965010322,1.1144952,2351.9,2351.8,0.42518]
[1725965010523,1.1144952,2352.0,2351.9,0.42516]
[1725965011723,2.3444952,2352.0,2351.7,0.79839]
[1725965011923,0.79827,2351.9,2351.7,0.79839]
[1725965012122,0.42519,2351.8,2351.6,0.3897]
[1725965012317,0.3844,2351.7,2351.6,0.81492]
[1725965013928,0.8096,2351.7,2351.5,0.79172]
[1725965014219,1.1144952,2351.9,2351.5,0.3665]
[1725965014420,0.80447,2351.9,2351.7,0.4252]
[1725965014923,0.80448,2351.9,2351.7,0.4252]
[1725965015124,0.42518,2351.8,2351.7,0.4252]
[1725965015323,0.42518,2351.8,2351.6,0.4252]
[1725965015718,0.42518,2351.8,2351.7,0.4252]
[1725965016227,0.42518,2351.8,2351.6,0.42521]
[1725965016825,0.42518,2351.8,2351.7,0.4252]
[1725965017632,1.9189652,2351.9,2351.7,0.4252]
[1725965018325,1.1144952,2351.8,2351.7,0.4252]
[1725965018733,1.5396752,2351.8,2351.6,0.4252]
[1725965019327,1.1144952,2351.8,2351.7,0.4252]
[1725965019727,1.9189752,2351.9,2351.7,0.4252]
[1725965020231,1.1144952,2351.8,2351.7,0.4252]
[1725965022630,1.5396752,2351.8,2351.6,0.4252]
[1725965022837,1.1848,2351.7,2351.6,0.4252]
[1725965023036,0.7596,2351.7,2351.6,0.4252]
[1725965023236,0.7596,2351.7,2351.5,0.79172]
[1725965023424,1.1848,2351.7,2351.5,0.79172]
[1725965023629,1.1848,2351.7,2351.5,0.3665]
[1725965023932,1.1848,2351.7,2351.6,0.42522]
[1725965024134,1.1848,2351.7,2351.5,0.79172]
[1725965024337,2.2992952,2351.7,2351.5,0.79172]
[1725965024737,1.1848,2351.7,2351.5,0.79172]
[1725965028139,0.42525,2351.5,2351.3,0.82827]
[1725965028455,0.3945,2351.4,2351.3,0.82827]
[1725965034845,0.42522,2351.6,2351.5,0.42523]
[1725965035143,0.82972,2351.6,2351.5,0.42523]
[1725965037041,0.4045,2351.6,2351.5,0.42523]
[1725965037243,0.82972,2351.6,2351.5,0.42523]
[1725965038936,1.9442152,2351.6,2351.5,0.42523]
[1725965039645,0.42524,2351.5,2351.4,0.42524]
[1725965039841,1.65524,2351.5,2351.4,0.42524]
[1725965040545,1.23,2351.5,2351.4,0.42524]
[1725965040850,0.42526,2351.4,2351.2,0.3968]
[1725965041047,1.65526,2351.4,2351.3,0.42527]
[1725965041245,2.7697552,2351.4,2351.3,0.42527]
[1725965042249,2.3444952,2351.4,2351.2,0.3968]
[1725965042445,0.42527,2351.3,2351.2,0.82208]
[1725965042649,1.1144952,2351.3,2351.2,0.82208]
[1725965043452,1.4942952,2351.3,2351.2,0.82208]
[1725965044354,1.9195652,2351.3,2351.2,0.82208]
[1725965044851,1.4942952,2351.3,2350.9,0.099]
[1725965045043,2.3444952,2351.0,2350.8,0.82165]
[1725965045245,1.9124352,2350.9,2350.8,0.3963]
[1725965045445,2.02794,2350.9,2350.8,0.3963]
[1725965045642,1.4849443,2350.9,2350.8,0.82166]
[1725965045845,1.1123443,2350.9,2350.8,0.82166]
[1725965050451,1.1123443,2351.0,2350.9,0.42534]
[1725965052261,2.7676643,2351.1,2351.0,0.42532]
[1725965052458,2.3423443,2351.1,2351.0,0.42532]
[1725965052659,1.23,2351.1,2351.0,0.42532]
[1725965052861,1.9228343,2351.2,2351.1,0.42531]
[1725965053459,0.81049,2351.2,2351.1,0.42531]
[1725965062564,0.3852,2351.2,2351.1,0.42531]
[1725965062870,0.81049,2351.2,2351.1,0.42531]
[1725965065465,2.47973245,2351.2,2351.1,0.42531]
[1725965066462,2.05444245,2351.2,2350.8,1.45971]
[1725965066665,0.8105,2351.2,2351.1,0.42531]
[1725965069575,3.03910208,2351.2,2351.1,0.42531]
[1725965069773,3.03910208,2351.2,2351.0,0.42531]
[1725965069774,0.42531,2351.1,2351.0,0.42531]
[1725965070071,0.8105,2351.2,2351.1,0.42531]
[1725965070576,3.03910208,2351.2,2351.1,0.42531]
[1725965070773,0.42531,2351.1,2351.0,0.42531]
[1725965070974,0.42533,2351.0,2350.8,0.3963]
[1725965071277,2.31827041,2351.0,2350.9,1.09023048]
[1725965071572,4.10488725,2351.0,2350.8,0.82165]
[1725965071767,1.53871921,2350.9,2350.8,0.82165]
[1725965071966,1.66985725,2350.9,2350.8,1.4865756]
[1725965072167,1.66985725,2350.9,2350.8,0.82165]
[1725965072375,1.66985725,2350.9,2350.8,1.48657694]
[1725965072872,2.09519725,2350.9,2350.8,1.48657694]
[1725965074075,1.53884884,2350.9,2350.8,1.48657694]
[1725965074272,2.09519725,2350.9,2350.8,1.48657694]
[1725965075774,2.09519725,2350.9,2350.8,0.82165]
[1725965075977,2.09519725,2350.9,2350.8,1.48653651]
[1725965077773,2.09519725,2350.9,2350.8,1.48657572]
[1725965079078,24.89518981,2350.9,2350.4,0.099]
[1725965079282,24.89518981,2350.9,2350.3,0.42544]
[1725965079283,3.45833348,2350.5,2350.3,0.42544]
[1725965079477,1.67124398,2350.4,2350.3,1.48908]
[1725965079681,1.11421642,2350.4,2350.3,1.09042604]
[1725965079874,1.11421642,2350.4,2350.3,5.34482604]
[1725965080075,1.11421642,2350.4,2350.3,6.408788]
[1725965080270,1.11421642,2350.4,2350.3,5.34482604]
[1725965080772,2.09666398,2350.5,2350.4,0.42543]
[1725965080773,2.65375348,2350.5,2350.4,0.42543]
[1725965081073,0.42543,2350.4,2350.3,0.42544]
[1725965081274,1.6708506,2350.4,2350.3,0.42544]
[1725965081893,2.0962806,2350.4,2350.3,0.42544]
[1725965083281,1.53899246,2350.4,2350.3,0.42544]
[1725965083675,1.90939246,2350.4,2350.3,0.42544]
[1725965083980,0.4255,2350.1,2350.0,0.4255]
[1725965084182,1.53877805,2350.1,2350.0,1.09062461]
[1725965084383,1.53877805,2350.1,2350.0,0.4255]
[1725965084684,2.09541707,2350.1,2350.0,0.4255]
[1725965084881,1.90893103,2350.1,2350.0,0.4255]
[1725965085577,1.48343103,2350.1,2350.0,0.4255]
[1725965085773,1.11303103,2350.1,2350.0,0.4255]
[1725965085970,2.02678,2350.2,2350.1,0.42549]
[1725965085971,3.13981103,2350.2,2350.1,0.42549]
[1725965086384,0.42549,2350.1,2350.0,0.4255]
[1725965086578,3.13981103,2350.2,2350.1,0.42549]
[1725965086880,1.90981103,2350.2,2350.1,0.42549]
[1725965087981,2.46669707,2350.2,2350.1,0.42549]
[1725965088181,1.90886266,2350.2,2350.1,0.42549]
[1725965089385,1.90886266,2350.2,2350.0,0.42549]
[1725965090086,1.90886266,2350.2,2350.1,0.42549]
[1725965090486,0.79678,2350.2,2350.1,0.42549]
[1725965090876,0.42548,2350.2,2350.1,0.42549]
[1725965094589,0.4255,2350.1,2350.0,0.42549]
[1725965094786,0.42551,2350.0,2349.9,0.4001]
[1725965094990,2.03151,2350.0,2349.9,0.4001]
[1725965095287,0.42552,2349.9,2349.8,0.42553]
[1725965095590,0.42554,2349.8,2349.7,0.79925]
[1725965095787,1.23,2349.8,2349.7,0.3737]
[1725965096097,1.23,2349.8,2349.4,1.16303]
[1725965096098,0.42557,2349.7,2349.6,0.42556]
[1725965096285,0.81827,2349.7,2349.6,0.42556]
[1725965098489,1.60917,2349.7,2349.6,0.42556]
[1725965099381,1.1836,2349.7,2349.6,0.42556]
[1725965100189,1.60916,2349.7,2349.6,0.42556]
[1725965100389,1.23,2349.7,2349.6,0.42556]
[1725965100689,2.3944,2349.7,2349.5,1.20748]
[1725965100897,0.42558,2349.6,2349.5,0.3928]
[1725965101100,0.42558,2349.6,2349.5,0.8184]
[1725965101296,2.3944,2349.7,2349.6,0.42558]
[1725965101596,1.65556,2349.8,2349.7,0.42555]
[1725965105599,1.11208266,2350.1,2349.7,5.486]
[1725965105901,0.82366,2350.3,2350.2,0.42547]
[1725965106112,2.05366,2350.3,2350.2,0.42547]
[1725965106689,2.05366,2350.3,2349.9,1.23]
[1725965106896,0.42547,2350.2,2350.1,0.42547]
[1725965107493,2.05366,2350.3,2350.2,0.42547]
[1725965107908,0.42547,2350.2,2349.9,2.29381]
[1725965108294,0.42547,2350.2,2350.1,0.42547]
[1725965112509,0.42549,2350.1,2350.0,0.42549]
[1725965114011,1.65549,2350.1,2350.0,0.42549]
[1725965114198,1.23,2350.1,2350.0,0.42549]
[1725965116709,1.65549,2350.1,2350.0,0.42549]
[1725965120112,2.76757266,2350.1,2350.0,0.42549]
[1725965120714,1.65549,2350.1,2350.0,0.42549]
[1725965121209,2.76757266,2350.1,2350.0,0.42549]
[1725965123120,3.32540707,2350.1,2350.0,0.42549]
[1725965125220,1.65549,2350.1,2350.0,0.42549]
[1725965126114,3.8820461,2350.1,2350.0,0.42549]
[1725965129216,0.42557,2349.7,2349.5,0.52459]
[1725965129423,2.90027704,2349.6,2349.5,0.3709]
[1725965129613,2.90027704,2349.6,2349.5,1.03620762]
[1725965129614,1.5957,2349.6,2349.5,1.03620762]
[1725965130116,4.63311606,2349.6,2349.5,1.03620762]
[1725965130322,2.40608,2349.6,2349.5,1.03620762]
[1725965130517,4.0761715,2349.6,2349.5,1.03620762]
[1725965130820,3.6913715,2349.6,2349.5,0.66530762]
[1725965131022,2.77838,2349.6,2349.5,0.66530762]
[1725965131317,0.4256,2349.5,2349.4,0.3771]
[1725965131618,3.32529102,2349.5,2349.4,1.04244907]
[1725965131919,3.32529102,2349.5,2349.4,0.3771]
[1725965131920,1.6556,2349.5,2349.4,0.3771]
[1725965132220,3.32488948,2349.5,2349.4,0.3771]
[1725965132821,3.32488948,2349.5,2349.4,1.04243795]
[1725965133020,3.32488948,2349.5,2349.4,0.3771]
[1725965134017,1.6556,2349.5,2349.4,0.3771]
[1725965134217,3.32440293,2349.5,2349.4,0.3771]
[1725965134816,0.42565,2349.2,2349.1,0.099]
[1725965135015,2.34243592,2349.2,2349.1,1.09104768]
[1725965135217,2.76808592,2349.2,2349.1,0.66537768]
[1725965135516,2.34243592,2349.2,2349.1,0.42567]
[1725965135721,2.89865388,2349.2,2349.1,0.42567]
[1725965136428,2.34181578,2349.2,2349.1,0.42567]
[1725965137024,1.11181578,2349.2,2349.1,0.42567]
[1725965137227,3.16845578,2349.3,2349.1,0.42567]
[1725965138221,2.34181578,2349.2,2349.1,0.42567]
[1725965139129,2.76747578,2349.2,2349.0,1.19878]
[1725965139523,2.76747578,2349.2,2349.1,0.3771]
[1725965139927,2.76747578,2349.2,2349.1,0.80277]
[1725965140123,2.76747578,2349.2,2349.1,0.3771]
[1725965140326,1.65566,2349.2,2349.1,0.3771]
[1725965142024,0.42567,2349.1,2349.0,0.3729]
[1725965142831,3.52947578,2349.2,2349.0,0.79858]
[1725965143236,2.41766,2349.2,2349.0,0.79858]
[1725965143936,2.41766,2349.2,2349.1,0.3879]
[1725965144327,2.41766,2349.2,2349.1,0.81357]
[1725965144625,2.41766,2349.2,2349.1,0.3879]
[1725965144830,2.41765,2349.2,2349.1,0.81357]
[1725965145028,2.02815,2349.2,2349.1,0.3879]
[1725965146634,1.6025,2349.2,2349.1,0.81357]
[1725965146820,0.401,2349.3,2349.1,0.3879]
[1725965147025,0.401,2349.3,2349.2,0.79505]
[1725965150128,1.631,2349.3,2349.2,0.79505]
[1725965150336,1.631,2349.3,2349.1,0.42566]
[1725965150536,0.42565,2349.2,2349.1,0.42566]
[1725965151643,2.05664,2349.3,2349.1,0.42566]
[1725965152440,2.05664,2349.3,2349.0,0.42568]
[1725965152441,0.42566,2349.2,2349.0,0.42568]
[1725965152639,1.23,2349.1,2349.0,0.42568]
[1725965153940,1.23,2349.2,2349.1,0.42567]
[1725965154441,1.23,2349.2,2349.1,41.22567]
[1725965154638,1.23,2349.2,2349.1,0.42567]
[1725965155631,1.23,2349.2,2349.1,0.81597]
[1725965160355,1.6108,2349.4,2349.3,0.42563]
[1725965162948,1.11181578,2349.7,2349.3,5.4868]
[1725965163141,0.79067,2349.7,2349.4,0.4256]
[1725965163338,2.02067,2349.7,2349.2,1.9874]
[1725965163538,2.70691578,2349.7,2349.5,0.42559]
[1725965164950,1.11181578,2349.8,2349.4,1.23]
[1725965165137,1.11181578,2349.8,2349.7,0.42556]
[1725965165344,0.3651,2350.0,2349.7,1.23]
[1725965165345,1.47691578,2350.0,2349.7,1.23]
[1725965165542,1.49561578,2350.1,2349.9,0.42552]
[1725965165738,1.11181578,2350.2,2350.0,1.62301]
[1725965165943,1.11181578,2350.2,2350.0,1.1975]
[1725965165944,2.34181578,2350.2,2350.0,1.1975]
[1725965166164,1.11181578,2350.2,2350.0,2.4275]
[1725965166341,1.48831578,2350.3,2350.2,0.42547]
[1725965166541,1.11181578,2350.4,2350.2,0.42547]
[1725965167145,3.67005388,2350.5,2350.2,0.42547]
[1725965167146,3.11321578,2350.5,2350.2,0.42547]
[1725965167748,3.11321578,2350.5,2350.0,2.4275]
[1725965167749,1.11181578,2350.5,2350.4,0.42543]
[1725965167959,2.22703606,2350.8,2350.3,1.23]
[1725965167960,1.11181578,2350.7,2350.3,1.23]
[1725965168251,1.6065,2350.8,2350.5,0.4254]
[1725965168655,1.6065,2350.8,2350.5,0.8267]
[1725965169940,1.6065,2350.8,2350.5,0.4013]
[1725965170147,3.0365,2350.8,2350.5,0.4013]
[1725965170354,3.0365,2350.8,2350.5,0.82671]
[1725965170754,3.0365,2350.8,2350.5,0.4013]
[1725965170951,3.0365,2350.8,2350.5,0.82671]
[1725965172050,3.0365,2350.8,2350.5,0.4013]
[1725965172253,3.0365,2350.8,2350.5,0.82671]
[1725965175148,3.0365,2350.8,2350.5,0.4013]
[1725965175347,3.0365,2350.8,2350.5,0.82671]
[1725965175562,3.0365,2350.8,2350.6,0.4254]
[1725965175750,3.0365,2350.8,2350.5,0.82671]
[1725965176754,3.0365,2350.8,2350.6,0.4254]
[1725965177259,3.46187,2350.8,2350.5,0.42541]
[1725965177749,3.0365,2350.8,2350.5,0.42541]
[1725965178260,3.0365,2350.8,2350.4,0.4037]
[1725965178452,3.0365,2350.8,2350.6,0.4254]
[1725965178866,3.46186,2350.8,2350.5,0.4254]
[1725965180759,3.46186,2350.8,2350.6,0.42539]
[1725965181259,3.46186,2350.8,2350.5,0.42541]
[1725965182755,3.46187,2350.8,2350.5,0.42541]
[1725965183861,0.382,2350.7,2350.6,0.4254]
[1725965184053,0.382,2350.7,2350.5,0.42541]
[1725965184255,0.80738,2350.7,2350.5,0.42541]
[1725965184960,0.382,2350.7,2350.5,0.42541]
[1725965185261,0.382,2350.7,2350.6,0.4254]
[1725965185659,0.099,2351.1,2350.6,12.9144]
[1725965185854,1.66865388,2351.4,2351.3,0.42527]
[1725965185855,0.099,2351.4,2351.3,0.42527]
[1725965186053,1.50891578,2351.5,2351.0,3.72331]
[1725965186054,0.42524,2351.5,2351.2,0.42528]
[1725965186257,0.42524,2351.5,2351.3,0.7788]
[1725965186565,0.42524,2351.5,2351.3,1.20407]
[1725965186763,0.3732,2351.6,2351.5,0.42523]
[1725965186970,3.55737,2351.9,2351.5,0.42523]
[1725965187262,3.45838,2351.9,2351.5,0.42523]
[1725965187466,0.42519,2351.8,2351.5,0.42523]
[1725965188266,3.45837,2351.9,2351.5,0.42523]
[1725965189571,0.42518,2351.8,2351.5,0.42523]
[1725965191463,3.45837,2351.9,2351.6,0.42522]
[1725965191764,3.45837,2351.9,2351.7,0.3731]
[1725965192967,0.42518,2351.8,2351.7,0.3731]
[1725965194360,3.45838,2351.9,2351.7,0.3731]
[1725965194565,3.45838,2351.9,2351.7,0.7983]
[1725965194764,3.45838,2351.9,2351.7,0.3731]
[1725965196975,0.42518,2351.8,2351.7,0.3731]
[1725965197169,3.45837,2351.9,2351.7,0.3731]
[1725965198177,2.02837,2351.9,2351.7,0.3731]
[1725965199268,1.6032,2351.9,2351.7,0.3731]
[1725965199466,2.02837,2351.9,2351.7,0.3731]
[1725965200780,0.42518,2351.8,2351.7,0.3731]
[1725965202483,0.42518,2351.8,2351.5,0.42522]
[1725965202685,1.6032,2351.9,2351.5,0.42522]
[1725965202989,1.65519,2351.8,2351.5,0.42522]
[1725965203285,1.65522,2351.6,2351.4,0.82984]
[1725965203688,1.65523,2351.6,2351.4,0.4046]
[1725965203876,0.3758,2351.5,2351.4,0.4046]
[1725965204076,0.3758,2351.5,2351.4,0.82985]
[1725965206187,0.80103,2351.5,2351.4,0.4046]
[1725965206382,0.3758,2351.5,2351.4,0.82985]
[1725965206589,0.80103,2351.5,2351.4,0.4046]
[1725965206786,0.80103,2351.5,2351.4,0.82985]
[1725965208389,0.7449,2351.5,2351.4,0.82985]
[1725965208591,0.7449,2351.5,2351.4,0.42525]
[1725965208781,1.17013,2351.5,2351.4,0.42525]
[1725965209082,0.7449,2351.5,2351.4,0.42525]
[1725965210178,1.17013,2351.5,2351.4,0.42525]
[1725965210783,0.7449,2351.5,2351.4,0.42525]
[1725965211685,1.23,2351.9,2351.3,2.0086]